[Event "January 2 Early 2024"]
[Site "https://www.chess.com"]
[Date "2024.01.02"]
[Round "3"]
[White "Tregubov, Pavel V."]
[Black "Ferro, Mario"]
[Result "1-0"]
[Board "115"]
[TimeControl "180+1"]
[WhiteFideId "4115341"]
[BlackFideId "810290"]
[WhiteElo "2631"]
[BlackElo "2401"]
[WhiteTeam "FRA"]
[BlackTeam "ITA"]
[WhiteClock "0:00:35"]
[BlackClock "0:00:00"]

1. e4 {[%clk 0:03:00]}  g6 {[%clk 0:02:58]} 2. d4 {[%clk 0:03:00]}  Bg7 {[%clk 0:02:58]} 3. Nf3 {[%clk 0:03:00]}  d6 {[%clk 0:02:55]} 4. Nc3 {[%clk 0:03:01]}  a6 {[%clk 0:02:51]} 5. Be2 {[%clk 0:03:01]}  b5 {[%clk 0:02:50]} 6. O-O {[%clk 0:03:01]}  Bb7 {[%clk 0:02:51]} 7. Re1 {[%clk 0:03:01]}  e6 {[%clk 0:02:50]} 8. Bf1 {[%clk 0:02:59]}  Ne7 {[%clk 0:02:50]} 9. a4 {[%clk 0:02:59]}  b4 {[%clk 0:02:50]} 10. Na2 {[%clk 0:02:59]}  c5 {[%clk 0:02:50]} 11. c3 {[%clk 0:02:52]}  bxc3 {[%clk 0:02:44]} 12. Nxc3 {[%clk 0:02:44]}  Nd7 {[%clk 0:02:44]} 13. dxc5 {[%clk 0:02:11]}  Nxc5 {[%clk 0:02:45]} 14. e5 {[%clk 0:02:12]}  dxe5 {[%clk 0:02:39]} 15. Qxd8+ {[%clk 0:01:56]}  Rxd8 {[%clk 0:02:40]} 16. Nxe5 {[%clk 0:01:56]}  Nb3 {[%clk 0:02:22]} 17. Rb1 {[%clk 0:01:56]}  Nxc1 {[%clk 0:02:13]} 18. Rbxc1 {[%clk 0:01:55]}  O-O {[%clk 0:02:14]} 19. Nc4 {[%clk 0:01:50]}  Nd5 {[%clk 0:02:00]} 20. Ne4 {[%clk 0:01:48]}  Nb4 {[%clk 0:01:54]} 21. Nc5 {[%clk 0:01:45]}  Bd5 {[%clk 0:01:44]} 22. b3 {[%clk 0:01:33]}  Bd4 {[%clk 0:01:41]} 23. Nb6 {[%clk 0:01:28]}  Bxc5 {[%clk 0:01:33]} 24. Rxc5 {[%clk 0:01:28]}  Rb8 {[%clk 0:01:02]} 25. Nxd5 {[%clk 0:01:23]}  exd5 {[%clk 0:00:55]} 26. Rd1 {[%clk 0:01:20]}  Rfd8 {[%clk 0:00:53]} 27. Rd4 {[%clk 0:01:19]}  Kf8 {[%clk 0:00:42]} 28. Rc7 {[%clk 0:01:12]}  g5 {[%clk 0:00:10]} 29. f4 {[%clk 0:01:07]}  h6 {[%clk 0:00:07]} 30. fxg5 {[%clk 0:00:59]}  hxg5 {[%clk 0:00:08]} 31. h4 {[%clk 0:00:56]}  Kg7 {[%clk 0:00:04]} 32. hxg5 {[%clk 0:00:52]}  Rd6 {[%clk 0:00:03]} 33. Rf4 {[%clk 0:00:48]}  d4 {[%clk 0:00:02]} 34. Rcxf7+ {[%clk 0:00:36]}  Kg6 {[%clk 0:00:02]} 35. R4f6+ {[%clk 0:00:36]}  Rxf6 {[%clk 0:00:02]} 36. Rxf6+ {[%clk 0:00:36]}  Kxg5 {[%clk 0:00:02]} 37. Rd6 {[%clk 0:00:37]}  d3 {[%clk 0:00:01]} 38. Bxd3 {[%clk 0:00:36]}  Nxd3 {[%clk 0:00:01]} 39. Rxd3 {[%clk 0:00:36]}  Kf4 {[%clk 0:00:00]} 40. Kf2 {[%clk 0:00:35]} 1-0

[Event "January 2 Early 2024"]
[Site "https://www.chess.com"]
[Date "2024.01.02"]
[Round "3"]
[White "Topalov, Aleksandar"]
[Black "Sipila, Vilka"]
[Result "1/2-1/2"]
[Board "117"]
[TimeControl "180+1"]
[WhiteFideId "925659"]
[BlackFideId "505455"]
[WhiteElo "2399"]
[BlackElo "2630"]
[WhiteTeam "SRB"]
[BlackTeam "FIN"]
[WhiteClock "0:00:13"]
[BlackClock "0:00:37"]

1. b3 {[%clk 0:03:00]}  c5 {[%clk 0:02:58]} 2. Bb2 {[%clk 0:02:57]}  Nc6 {[%clk 0:02:58]} 3. Nf3 {[%clk 0:02:57]}  Nf6 {[%clk 0:02:58]} 4. c4 {[%clk 0:02:56]}  g6 {[%clk 0:02:58]} 5. e3 {[%clk 0:02:50]}  Bg7 {[%clk 0:02:58]} 6. Be2 {[%clk 0:02:50]}  O-O {[%clk 0:02:58]} 7. O-O {[%clk 0:02:50]}  b6 {[%clk 0:02:56]} 8. d4 {[%clk 0:02:41]}  cxd4 {[%clk 0:02:56]} 9. Nxd4 {[%clk 0:02:40]}  Bb7 {[%clk 0:02:56]} 10. Bf3 {[%clk 0:02:39]}  Rc8 {[%clk 0:02:56]} 11. Nc3 {[%clk 0:02:38]}  Qc7 {[%clk 0:02:44]} 12. Nxc6 {[%clk 0:02:27]}  Bxc6 {[%clk 0:02:42]} 13. Bxc6 {[%clk 0:02:27]}  dxc6 {[%clk 0:02:42]} 14. Qe2 {[%clk 0:02:25]}  Rfd8 {[%clk 0:02:41]} 15. Rfd1 {[%clk 0:02:25]}  Nd7 {[%clk 0:02:31]} 16. Rd2 {[%clk 0:02:11]}  Nc5 {[%clk 0:02:28]} 17. Rad1 {[%clk 0:02:09]}  h5 {[%clk 0:02:23]} 18. h3 {[%clk 0:02:06]}  a5 {[%clk 0:02:22]} 19. Qf3 {[%clk 0:01:55]}  Ne6 {[%clk 0:02:06]} 20. Na4 {[%clk 0:01:48]}  Bxb2 {[%clk 0:02:05]} 21. Nxb2 {[%clk 0:01:48]}  b5 {[%clk 0:02:05]} 22. Qe2 {[%clk 0:01:34]}  Rxd2 {[%clk 0:01:57]} 23. Rxd2 {[%clk 0:01:34]}  Qb7 {[%clk 0:01:57]} 24. Rc2 {[%clk 0:01:30]}  Ra8 {[%clk 0:01:55]} 25. cxb5 {[%clk 0:01:15]}  cxb5 {[%clk 0:01:56]} 26. Nd3 {[%clk 0:01:15]}  Qb6 {[%clk 0:01:52]} 27. Qf3 {[%clk 0:01:10]}  Ra7 {[%clk 0:01:36]} 28. Ne5 {[%clk 0:01:09]}  Ng5 {[%clk 0:01:36]} 29. Qf4 {[%clk 0:01:04]}  Qf6 {[%clk 0:01:36]} 30. Qxf6 {[%clk 0:01:01]}  exf6 {[%clk 0:01:36]} 31. Rc8+ {[%clk 0:00:53]}  Kg7 {[%clk 0:01:36]} 32. Nc6 {[%clk 0:00:53]}  Ra6 {[%clk 0:01:34]} 33. f3 {[%clk 0:00:47]}  Ne6 {[%clk 0:01:30]} 34. Kf2 {[%clk 0:00:44]}  Nc5 {[%clk 0:01:28]} 35. Ke2 {[%clk 0:00:41]}  Nb7 {[%clk 0:01:11]} 36. Nd4 {[%clk 0:00:38]}  b4 {[%clk 0:01:07]} 37. Rc7 {[%clk 0:00:35]}  Nd6 {[%clk 0:01:06]} 38. Rc6 {[%clk 0:00:33]}  Rxc6 {[%clk 0:01:04]} 39. Nxc6 {[%clk 0:00:33]}  Nb5 {[%clk 0:01:05]} 40. Nxa5 {[%clk 0:00:31]}  Nc3+ {[%clk 0:01:05]} 41. Kd3 {[%clk 0:00:31]}  Nxa2 {[%clk 0:01:06]} 42. Kc4 {[%clk 0:00:31]}  f5 {[%clk 0:01:01]} 43. Nc6 {[%clk 0:00:30]}  Nc3 {[%clk 0:01:00]} 44. Nxb4 {[%clk 0:00:28]}  Nd1 {[%clk 0:01:00]} 45. Kd3 {[%clk 0:00:27]}  Nf2+ {[%clk 0:00:51]} 46. Ke2 {[%clk 0:00:27]}  Nh1 {[%clk 0:00:52]} 47. Nd5 {[%clk 0:00:25]}  Kf8 {[%clk 0:00:45]} 48. b4 {[%clk 0:00:25]}  Ke8 {[%clk 0:00:46]} 49. b5 {[%clk 0:00:26]}  Kd7 {[%clk 0:00:46]} 50. Kd3 {[%clk 0:00:18]}  Ng3 {[%clk 0:00:43]} 51. Kd4 {[%clk 0:00:17]}  Kd6 {[%clk 0:00:42]} 52. e4 {[%clk 0:00:17]}  fxe4 {[%clk 0:00:42]} 53. fxe4 {[%clk 0:00:17]}  Ne2+ {[%clk 0:00:38]} 54. Ke3 {[%clk 0:00:15]}  Nc1 {[%clk 0:00:37]} 55. Kd4 {[%clk 0:00:14]}  Nb3+ {[%clk 0:00:37]} 56. Kc4 {[%clk 0:00:14]}  Nd2+ {[%clk 0:00:37]} 57. Kd4 {[%clk 0:00:14]}  Nb3+ {[%clk 0:00:37]} 58. Kc3 {[%clk 0:00:13]}  Nc5 {[%clk 0:00:37]} 59. Kd4 {[%clk 0:00:13]}  Nb3+ {[%clk 0:00:37]} 1/2-1/2

[Event "January 2 Early 2024"]
[Site "https://www.chess.com"]
[Date "2024.01.02"]
[Round "3"]
[White "Golubev, Mikhail"]
[Black "Carre, Sylvain"]
[Result "0-1"]
[Board "119"]
[TimeControl "180+1"]
[WhiteFideId "14100983"]
[BlackFideId "642118"]
[WhiteElo "2625"]
[BlackElo "2399"]
[WhiteTeam "UKR"]
[BlackTeam "FRA"]
[WhiteClock "0:00:00"]
[BlackClock "0:00:09"]

1. e4 {[%clk 0:03:00]}  e5 {[%clk 0:02:59]} 2. Nf3 {[%clk 0:02:58]}  Nf6 {[%clk 0:03:00]} 3. Nxe5 {[%clk 0:02:55]}  d6 {[%clk 0:03:00]} 4. Nf3 {[%clk 0:02:55]}  Nxe4 {[%clk 0:03:00]} 5. Qe2 {[%clk 0:02:55]}  Qe7 {[%clk 0:03:00]} 6. d3 {[%clk 0:02:54]}  Nf6 {[%clk 0:03:00]} 7. Bg5 {[%clk 0:02:54]}  Nbd7 {[%clk 0:02:59]} 8. Nc3 {[%clk 0:02:51]}  Qxe2+ {[%clk 0:02:58]} 9. Bxe2 {[%clk 0:02:50]}  c6 {[%clk 0:02:52]} 10. O-O-O {[%clk 0:02:49]}  Be7 {[%clk 0:02:47]} 11. Rde1 {[%clk 0:02:48]}  O-O {[%clk 0:02:47]} 12. Bd1 {[%clk 0:02:46]}  Bd8 {[%clk 0:02:40]} 13. Bf4 {[%clk 0:02:17]}  Bc7 {[%clk 0:02:21]} 14. h3 {[%clk 0:02:02]}  Nb6 {[%clk 0:02:15]} 15. g4 {[%clk 0:01:52]}  Nbd5 {[%clk 0:02:15]} 16. Nxd5 {[%clk 0:01:44]}  Nxd5 {[%clk 0:02:16]} 17. Bg3 {[%clk 0:01:44]}  Bd7 {[%clk 0:01:53]} 18. Ng5 {[%clk 0:01:28]}  Nf6 {[%clk 0:01:43]} 19. Bf3 {[%clk 0:01:03]}  Rfe8 {[%clk 0:01:41]} 20. Ne4 {[%clk 0:00:55]}  Nxe4 {[%clk 0:01:41]} 21. Bxe4 {[%clk 0:00:56]}  Rad8 {[%clk 0:01:16]} 22. d4 {[%clk 0:00:29]}  Bc8 {[%clk 0:00:58]} 23. Bd3 {[%clk 0:00:24]}  h6 {[%clk 0:00:41]} 24. Kd2 {[%clk 0:00:22]}  Kf8 {[%clk 0:00:42]} 25. f3 {[%clk 0:00:16]}  Rxe1 {[%clk 0:00:39]} 26. Rxe1 {[%clk 0:00:16]}  Re8 {[%clk 0:00:40]} 27. Rh1 {[%clk 0:00:13]}  Be6 {[%clk 0:00:31]} 28. h4 {[%clk 0:00:10]}  Bd5 {[%clk 0:00:30]} 29. Rf1 {[%clk 0:00:08]}  b5 {[%clk 0:00:26]} 30. a3 {[%clk 0:00:06]}  a5 {[%clk 0:00:26]} 31. g5 {[%clk 0:00:05]}  hxg5 {[%clk 0:00:25]} 32. hxg5 {[%clk 0:00:06]}  g6 {[%clk 0:00:22]} 33. f4 {[%clk 0:00:05]}  a4 {[%clk 0:00:20]} 34. f5 {[%clk 0:00:05]}  gxf5 {[%clk 0:00:17]} 35. Bxf5 {[%clk 0:00:06]}  Kg7 {[%clk 0:00:15]} 36. Rh1 {[%clk 0:00:05]}  Be6 {[%clk 0:00:14]} 37. Be4 {[%clk 0:00:03]}  d5 {[%clk 0:00:12]} 38. Bxc7 {[%clk 0:00:02]}  dxe4 {[%clk 0:00:12]} 39. Be5+ {[%clk 0:00:02]}  Kg6 {[%clk 0:00:12]} 40. Bf6 {[%clk 0:00:02]}  Bc4 {[%clk 0:00:08]} 41. Rh6+ {[%clk 0:00:03]}  Kf5 {[%clk 0:00:08]} 42. Ke3 {[%clk 0:00:03]}  Bd5 {[%clk 0:00:07]} 43. c3 {[%clk 0:00:03]}  Rg8 {[%clk 0:00:06]} 44. Rh4 {[%clk 0:00:03]}  Rg6 {[%clk 0:00:05]} 45. Rf4+ {[%clk 0:00:04]}  Ke6 {[%clk 0:00:06]} 46. Bd8 {[%clk 0:00:03]}  Rg7 {[%clk 0:00:06]} 47. Bf6 {[%clk 0:00:04]}  Rg6 {[%clk 0:00:06]} 48. Bd8 {[%clk 0:00:03]}  Rg7 {[%clk 0:00:07]} 49. Bf6 {[%clk 0:00:04]}  Rh7 {[%clk 0:00:07]} 50. Be5 {[%clk 0:00:02]}  Rh3+ {[%clk 0:00:07]} 51. Ke2 {[%clk 0:00:02]}  Rf3 {[%clk 0:00:07]} 52. Rxf3 {[%clk 0:00:01]}  exf3+ {[%clk 0:00:08]} 53. Kf2 {[%clk 0:00:01]}  Kf5 {[%clk 0:00:09]} 54. Bf6 {[%clk 0:00:00]}  Ke4 {[%clk 0:00:09]} 0-1

[Event "January 2 Early 2024"]
[Site "https://www.chess.com"]
[Date "2024.01.02"]
[Round "3"]
[White "Tiarks, Jann-Christian"]
[Black "Povshednyi, Ivan"]
[Result "1-0"]
[Board "120"]
[TimeControl "180+1"]
[WhiteFideId "12951595"]
[BlackFideId "14190907"]
[WhiteElo "2398"]
[BlackElo "2625"]
[WhiteTeam "GER"]
[BlackTeam "UKR"]
[WhiteClock "0:00:59"]
[BlackClock "0:00:16"]

1. e4 {[%clk 0:03:00]}  c6 {[%clk 0:02:59]} 2. Nf3 {[%clk 0:02:57]}  d5 {[%clk 0:02:59]} 3. Nc3 {[%clk 0:02:58]}  dxe4 {[%clk 0:02:59]} 4. Nxe4 {[%clk 0:02:59]}  Nf6 {[%clk 0:03:00]} 5. Qe2 {[%clk 0:02:59]}  Nxe4 {[%clk 0:03:00]} 6. Qxe4 {[%clk 0:02:59]}  Be6 {[%clk 0:03:01]} 7. c4 {[%clk 0:02:55]}  Nd7 {[%clk 0:03:00]} 8. d4 {[%clk 0:02:53]}  Nf6 {[%clk 0:02:59]} 9. Qc2 {[%clk 0:02:52]}  g6 {[%clk 0:02:59]} 10. Bd3 {[%clk 0:02:49]}  Bg4 {[%clk 0:02:57]} 11. Be3 {[%clk 0:02:47]}  Bxf3 {[%clk 0:02:55]} 12. gxf3 {[%clk 0:02:48]}  Bg7 {[%clk 0:02:55]} 13. O-O-O {[%clk 0:02:45]}  Nh5 {[%clk 0:02:53]} 14. Kb1 {[%clk 0:02:39]}  Qc7 {[%clk 0:02:45]} 15. d5 {[%clk 0:02:24]}  cxd5 {[%clk 0:02:35]} 16. cxd5 {[%clk 0:02:22]}  Qxc2+ {[%clk 0:02:36]} 17. Bxc2 {[%clk 0:02:22]}  O-O {[%clk 0:02:31]} 18. Rhe1 {[%clk 0:02:18]}  Bf6 {[%clk 0:02:14]} 19. d6 {[%clk 0:02:05]}  exd6 {[%clk 0:02:05]} 20. Rxd6 {[%clk 0:02:05]}  Rfd8 {[%clk 0:02:04]} 21. Red1 {[%clk 0:02:05]}  Rxd6 {[%clk 0:01:59]} 22. Rxd6 {[%clk 0:02:06]}  Rd8 {[%clk 0:01:59]} 23. Rxd8+ {[%clk 0:02:05]}  Bxd8 {[%clk 0:02:00]} 24. Bxa7 {[%clk 0:02:06]}  Bc7 {[%clk 0:01:48]} 25. Be4 {[%clk 0:01:51]}  b5 {[%clk 0:01:33]} 26. Bc6 {[%clk 0:01:42]}  b4 {[%clk 0:01:27]} 27. Bc5 {[%clk 0:01:40]}  Bxh2 {[%clk 0:01:24]} 28. Bxb4 {[%clk 0:01:39]}  Bc7 {[%clk 0:01:09]} 29. Bd2 {[%clk 0:01:32]}  Nf4 {[%clk 0:01:02]} 30. Bxf4 {[%clk 0:01:27]}  Bxf4 {[%clk 0:01:03]} 31. Bb5 {[%clk 0:01:27]}  Kf8 {[%clk 0:01:00]} 32. Bf1 {[%clk 0:01:27]}  Ke7 {[%clk 0:00:59]} 33. Kc2 {[%clk 0:01:28]}  Kd6 {[%clk 0:00:59]} 34. b4 {[%clk 0:01:28]}  Bh2 {[%clk 0:00:56]} 35. Bc4 {[%clk 0:01:26]}  f6 {[%clk 0:00:51]} 36. Bg8 {[%clk 0:01:24]}  h6 {[%clk 0:00:49]} 37. Kd3 {[%clk 0:01:25]}  Kc6 {[%clk 0:00:43]} 38. a4 {[%clk 0:01:24]}  Bd6 {[%clk 0:00:43]} 39. Kc4 {[%clk 0:01:23]}  Bh2 {[%clk 0:00:37]} 40. Bd5+ {[%clk 0:01:22]}  Kc7 {[%clk 0:00:33]} 41. Kd3 {[%clk 0:01:18]}  Bd6 {[%clk 0:00:32]} 42. Kc4 {[%clk 0:01:18]}  Bh2 {[%clk 0:00:33]} 43. Kb5 {[%clk 0:01:14]}  Bg1 {[%clk 0:00:31]} 44. Ka6 {[%clk 0:01:15]}  Bxf2 {[%clk 0:00:31]} 45. b5 {[%clk 0:01:15]}  h5 {[%clk 0:00:24]} 46. a5 {[%clk 0:01:11]}  Kb8 {[%clk 0:00:24]} 47. Bf7 {[%clk 0:01:02]}  h4 {[%clk 0:00:22]} 48. Bxg6 {[%clk 0:01:02]}  h3 {[%clk 0:00:22]} 49. f4 {[%clk 0:01:02]}  Be3 {[%clk 0:00:16]} 50. Be4 {[%clk 0:01:00]}  Bxf4 {[%clk 0:00:16]} 51. b6 {[%clk 0:01:00]}  Bd2 {[%clk 0:00:11]} 52. Kb5 {[%clk 0:00:59]}  h2 {[%clk 0:00:11]} 53. a6 {[%clk 0:00:58]}  f5 {[%clk 0:00:09]} 54. Bf3 {[%clk 0:00:58]}  Be3 {[%clk 0:00:08]} 55. a7+ {[%clk 0:00:58]}  Kc8 {[%clk 0:00:09]} 56. a8=Q+ {[%clk 0:00:59]}  Kd7 {[%clk 0:00:10]} 57. Qc6+ {[%clk 0:00:59]}  Ke7 {[%clk 0:00:10]} 58. b7 {[%clk 0:00:58]}  Bf4 {[%clk 0:00:10]} 59. Qc8 {[%clk 0:00:57]}  Kf6 {[%clk 0:00:10]} 60. b8=Q {[%clk 0:00:56]}  Bxb8 {[%clk 0:00:11]} 61. Qxb8 {[%clk 0:00:57]}  f4 {[%clk 0:00:12]} 62. Qxf4+ {[%clk 0:00:57]}  Kg6 {[%clk 0:00:13]} 63. Qxh2 {[%clk 0:00:57]}  Kg5 {[%clk 0:00:14]} 64. Qg3+ {[%clk 0:00:57]}  Kh6 {[%clk 0:00:14]} 65. Kc5 {[%clk 0:00:56]}  Kh7 {[%clk 0:00:13]} 66. Kd6 {[%clk 0:00:56]}  Kh6 {[%clk 0:00:14]} 67. Ke6 {[%clk 0:00:57]}  Kh7 {[%clk 0:00:15]} 68. Kf6 {[%clk 0:00:58]}  Kh6 {[%clk 0:00:16]} 69. Qg6# {[%clk 0:00:59]} 1-0

[Event "January 2 Early 2024"]
[Site "https://www.chess.com"]
[Date "2024.01.02"]
[Round "3"]
[White "Shadhursshaan R"]
[Black "Souleidis, Georgios"]
[Result "0-1"]
[Board "121"]
[TimeControl "180+1"]
[WhiteFideId "45024138"]
[BlackFideId "4206827"]
[WhiteElo "2397"]
[BlackElo "2620"]
[WhiteTeam "IND"]
[BlackTeam "GRE"]
[WhiteClock "0:00:38"]
[BlackClock "0:00:11"]

1. d4 {[%clk 0:02:54]}  Nf6 {[%clk 0:02:59]} 2. c4 {[%clk 0:02:52]}  g6 {[%clk 0:02:59]} 3. Nf3 {[%clk 0:02:49]}  Bg7 {[%clk 0:03:00]} 4. g4 {[%clk 0:02:48]}  Nxg4 {[%clk 0:02:55]} 5. Bg2 {[%clk 0:02:44]}  O-O {[%clk 0:02:54]} 6. O-O {[%clk 0:02:43]}  d6 {[%clk 0:02:52]} 7. Nc3 {[%clk 0:02:43]}  e5 {[%clk 0:02:47]} 8. h3 {[%clk 0:02:38]}  exd4 {[%clk 0:02:43]} 9. Nxd4 {[%clk 0:02:34]}  Ne5 {[%clk 0:02:41]} 10. b3 {[%clk 0:02:28]}  Nbc6 {[%clk 0:02:40]} 11. Nxc6 {[%clk 0:02:28]}  Nxc6 {[%clk 0:02:39]} 12. Bb2 {[%clk 0:02:27]}  Qh4 {[%clk 0:02:38]} 13. Qd3 {[%clk 0:02:27]}  Bf5 {[%clk 0:02:20]} 14. e4 {[%clk 0:02:23]}  Be6 {[%clk 0:02:20]} 15. Rad1 {[%clk 0:02:18]}  Rfe8 {[%clk 0:02:15]} 16. f4 {[%clk 0:02:07]}  f5 {[%clk 0:01:49]} 17. Bc1 {[%clk 0:01:52]}  fxe4 {[%clk 0:01:36]} 18. Nxe4 {[%clk 0:01:53]}  Bf5 {[%clk 0:01:36]} 19. Qd5+ {[%clk 0:01:53]}  Kh8 {[%clk 0:01:33]} 20. Ng5 {[%clk 0:01:51]}  h6 {[%clk 0:01:22]} 21. Nf3 {[%clk 0:01:24]}  Qg3 {[%clk 0:01:22]} 22. Kh1 {[%clk 0:01:20]}  Re2 {[%clk 0:01:06]} 23. Ng1 {[%clk 0:01:16]}  Be4 {[%clk 0:00:46]} 24. Qxe4 {[%clk 0:01:01]}  Rxe4 {[%clk 0:00:46]} 25. Bxe4 {[%clk 0:01:02]}  Re8 {[%clk 0:00:44]} 26. Rd3 {[%clk 0:01:01]}  Qh4 {[%clk 0:00:41]} 27. Bxg6 {[%clk 0:01:01]}  Re1 {[%clk 0:00:34]} 28. Rxe1 {[%clk 0:00:46]}  Qxe1 {[%clk 0:00:34]} 29. Bd2 {[%clk 0:00:47]}  Qf2 {[%clk 0:00:31]} 30. Be3 {[%clk 0:00:44]}  Qf1 {[%clk 0:00:26]} 31. Bd2 {[%clk 0:00:41]}  Bd4 {[%clk 0:00:21]} 32. Rg3 {[%clk 0:00:39]}  Qd1 {[%clk 0:00:16]} 33. Bc3 {[%clk 0:00:32]}  Bxc3 {[%clk 0:00:16]} 34. Rxc3 {[%clk 0:00:33]}  Qd2 {[%clk 0:00:15]} 35. Rc2 {[%clk 0:00:32]}  Qxf4 {[%clk 0:00:15]} 36. Rg2 {[%clk 0:00:33]}  Ne5 {[%clk 0:00:15]} 37. Ne2 {[%clk 0:00:33]}  Qf1+ {[%clk 0:00:14]} 38. Ng1 {[%clk 0:00:33]}  Nf3 {[%clk 0:00:10]} 39. Be4 {[%clk 0:00:31]}  Nxg1 {[%clk 0:00:08]} 40. Kh2 {[%clk 0:00:31]}  Nf3+ {[%clk 0:00:06]} 41. Kg3 {[%clk 0:00:31]}  Ne1 {[%clk 0:00:06]} 42. Rf2 {[%clk 0:00:31]}  Qg1+ {[%clk 0:00:07]} 43. Bg2 {[%clk 0:00:31]}  Nxg2 {[%clk 0:00:07]} 44. Rxg2 {[%clk 0:00:32]}  Qe3+ {[%clk 0:00:08]} 45. Kh2 {[%clk 0:00:33]}  c5 {[%clk 0:00:08]} 46. Rg3 {[%clk 0:00:33]}  Qe5 {[%clk 0:00:08]} 47. Kg2 {[%clk 0:00:33]}  b6 {[%clk 0:00:09]} 48. Kh2 {[%clk 0:00:33]}  d5 {[%clk 0:00:09]} 49. cxd5 {[%clk 0:00:32]}  Qxd5 {[%clk 0:00:10]} 50. Rg2 {[%clk 0:00:33]}  Qe5+ {[%clk 0:00:10]} 51. Kh1 {[%clk 0:00:33]}  h5 {[%clk 0:00:10]} 52. Rf2 {[%clk 0:00:33]}  b5 {[%clk 0:00:10]} 53. Rg2 {[%clk 0:00:33]}  c4 {[%clk 0:00:10]} 54. bxc4 {[%clk 0:00:34]}  bxc4 {[%clk 0:00:11]} 55. Rc2 {[%clk 0:00:35]}  c3 {[%clk 0:00:11]} 56. Rg2 {[%clk 0:00:36]}  Qe4 {[%clk 0:00:11]} 57. Kh2 {[%clk 0:00:36]}  Qxg2+ {[%clk 0:00:12]} 58. Kxg2 {[%clk 0:00:36]}  c2 {[%clk 0:00:13]} 59. Kg3 {[%clk 0:00:37]}  c1=Q {[%clk 0:00:11]} 60. Kh4 {[%clk 0:00:38]} 0-1

[Event "January 2 Early 2024"]
[Site "https://www.chess.com"]
[Date "2024.01.02"]
[Round "3"]
[White "Yagupov, Igor"]
[Black "Astafurov, Arseniy"]
[Result "1/2-1/2"]
[Board "122"]
[TimeControl "180+1"]
[WhiteFideId "4113632"]
[BlackFideId "24175218"]
[WhiteElo "2618"]
[BlackElo "2398"]
[WhiteTeam "RUS"]
[BlackTeam "RUS"]
[WhiteClock "0:00:04"]
[BlackClock "0:00:08"]

1. e4 {[%clk 0:03:00]}  e6 {[%clk 0:02:59]} 2. d4 {[%clk 0:02:56]}  d5 {[%clk 0:02:59]} 3. Bd3 {[%clk 0:02:55]}  dxe4 {[%clk 0:02:59]} 4. Bxe4 {[%clk 0:02:55]}  Nf6 {[%clk 0:03:00]} 5. Bf3 {[%clk 0:02:55]}  c5 {[%clk 0:03:01]} 6. Ne2 {[%clk 0:02:55]}  Nc6 {[%clk 0:03:01]} 7. Be3 {[%clk 0:02:54]}  cxd4 {[%clk 0:03:00]} 8. Nxd4 {[%clk 0:02:55]}  Ne5 {[%clk 0:03:00]} 9. Nc3 {[%clk 0:02:55]}  a6 {[%clk 0:03:00]} 10. Qe2 {[%clk 0:02:55]}  Nxf3+ {[%clk 0:02:57]} 11. Qxf3 {[%clk 0:02:54]}  Bb4 {[%clk 0:02:32]} 12. Ne2 {[%clk 0:02:46]}  O-O {[%clk 0:02:31]} 13. O-O {[%clk 0:02:43]}  Qc7 {[%clk 0:02:09]} 14. Bg5 {[%clk 0:02:29]}  Be7 {[%clk 0:02:03]} 15. Rfd1 {[%clk 0:02:16]}  Bd7 {[%clk 0:01:53]} 16. Nd4 {[%clk 0:02:16]}  Rfe8 {[%clk 0:01:47]} 17. a3 {[%clk 0:02:12]}  Rad8 {[%clk 0:01:44]} 18. h3 {[%clk 0:02:10]}  Qb6 {[%clk 0:01:30]} 19. Nb3 {[%clk 0:02:05]}  Bc6 {[%clk 0:01:30]} 20. Qe3 {[%clk 0:02:04]}  Qxe3 {[%clk 0:01:28]} 21. Bxe3 {[%clk 0:02:03]}  Ne4 {[%clk 0:01:24]} 22. Ne2 {[%clk 0:02:01]}  Bd5 {[%clk 0:01:12]} 23. Na5 {[%clk 0:01:59]}  Rc8 {[%clk 0:01:09]} 24. Rac1 {[%clk 0:01:54]}  Bd8 {[%clk 0:01:08]} 25. c4 {[%clk 0:01:37]}  Bxa5 {[%clk 0:00:54]} 26. cxd5 {[%clk 0:01:37]}  Rxc1 {[%clk 0:00:51]} 27. Nxc1 {[%clk 0:01:33]}  Rd8 {[%clk 0:00:45]} 28. f3 {[%clk 0:01:23]}  Ng3 {[%clk 0:00:33]} 29. Kf2 {[%clk 0:01:12]}  Nf5 {[%clk 0:00:30]} 30. g4 {[%clk 0:00:54]}  Nxe3 {[%clk 0:00:30]} 31. Kxe3 {[%clk 0:00:54]}  exd5 {[%clk 0:00:30]} 32. Kd3 {[%clk 0:00:50]}  Kf8 {[%clk 0:00:28]} 33. Ne2 {[%clk 0:00:50]}  Re8 {[%clk 0:00:24]} 34. Nf4 {[%clk 0:00:47]}  Re5 {[%clk 0:00:19]} 35. Kc2 {[%clk 0:00:44]}  Re3 {[%clk 0:00:18]} 36. Rd3 {[%clk 0:00:40]}  Rxd3 {[%clk 0:00:14]} 37. Kxd3 {[%clk 0:00:39]}  Ke7 {[%clk 0:00:15]} 38. Nxd5+ {[%clk 0:00:39]}  Kd6 {[%clk 0:00:15]} 39. Ne3 {[%clk 0:00:39]}  Bd8 {[%clk 0:00:15]} 40. Nf5+ {[%clk 0:00:38]}  Ke5 {[%clk 0:00:15]} 41. Nxg7 {[%clk 0:00:39]}  Kf4 {[%clk 0:00:16]} 42. Ke2 {[%clk 0:00:35]}  Kg3 {[%clk 0:00:16]} 43. Nf5+ {[%clk 0:00:36]}  Kxh3 {[%clk 0:00:16]} 44. Nd6 {[%clk 0:00:36]}  b6 {[%clk 0:00:11]} 45. Nxf7 {[%clk 0:00:35]}  Bf6 {[%clk 0:00:12]} 46. b3 {[%clk 0:00:35]}  Kg3 {[%clk 0:00:12]} 47. a4 {[%clk 0:00:30]}  Kf4 {[%clk 0:00:12]} 48. Nd6 {[%clk 0:00:29]}  Be5 {[%clk 0:00:09]} 49. Nc4 {[%clk 0:00:24]}  Bd4 {[%clk 0:00:09]} 50. Nd2 {[%clk 0:00:18]}  b5 {[%clk 0:00:09]} 51. axb5 {[%clk 0:00:16]}  axb5 {[%clk 0:00:10]} 52. Ne4 {[%clk 0:00:17]}  b4 {[%clk 0:00:10]} 53. Nf2 {[%clk 0:00:15]}  Kg3 {[%clk 0:00:08]} 54. Nd3 {[%clk 0:00:14]}  Bc3 {[%clk 0:00:08]} 55. Nc5 {[%clk 0:00:14]}  Kf4 {[%clk 0:00:07]} 56. Ne6+ {[%clk 0:00:13]}  Ke5 {[%clk 0:00:07]} 57. Ng5 {[%clk 0:00:13]}  Kd4 {[%clk 0:00:04]} 58. Nxh7 {[%clk 0:00:12]}  Bb2 {[%clk 0:00:04]} 59. g5 {[%clk 0:00:09]}  Kc3 {[%clk 0:00:04]} 60. f4 {[%clk 0:00:09]}  Kxb3 {[%clk 0:00:05]} 61. f5 {[%clk 0:00:09]}  Kc2 {[%clk 0:00:05]} 62. f6 {[%clk 0:00:08]}  b3 {[%clk 0:00:06]} 63. g6 {[%clk 0:00:09]}  Be5 {[%clk 0:00:05]} 64. g7 {[%clk 0:00:08]}  b2 {[%clk 0:00:05]} 65. g8=Q {[%clk 0:00:08]}  b1=Q {[%clk 0:00:05]} 66. Qg6+ {[%clk 0:00:09]}  Kb2 {[%clk 0:00:05]} 67. Qxb1+ {[%clk 0:00:10]}  Kxb1 {[%clk 0:00:05]} 68. f7 {[%clk 0:00:11]}  Bd6 {[%clk 0:00:06]} 69. Kd3 {[%clk 0:00:11]}  Kb2 {[%clk 0:00:06]} 70. Kd4 {[%clk 0:00:11]}  Kc2 {[%clk 0:00:06]} 71. Kd5 {[%clk 0:00:12]}  Bb4 {[%clk 0:00:05]} 72. Ke6 {[%clk 0:00:12]}  Kd3 {[%clk 0:00:05]} 73. Nf6 {[%clk 0:00:11]}  Bf8 {[%clk 0:00:04]} 74. Kd7 {[%clk 0:00:10]}  Kd4 {[%clk 0:00:04]} 75. Ke8 {[%clk 0:00:10]}  Bg7 {[%clk 0:00:02]} 76. Nh5 {[%clk 0:00:10]}  Bh6 {[%clk 0:00:02]} 77. Ke7 {[%clk 0:00:10]}  Ke5 {[%clk 0:00:02]} 78. Nf6 {[%clk 0:00:08]}  Kf5 {[%clk 0:00:01]} 79. Ng8 {[%clk 0:00:06]}  Bg7 {[%clk 0:00:01]} 80. Ke8 {[%clk 0:00:05]}  Kg6 {[%clk 0:00:01]} 81. Ne7+ {[%clk 0:00:05]}  Kf6 {[%clk 0:00:02]} 82. Nd5+ {[%clk 0:00:05]}  Ke6 {[%clk 0:00:02]} 83. Ne3 {[%clk 0:00:05]}  Kf6 {[%clk 0:00:03]} 84. Ng4+ {[%clk 0:00:04]}  Ke6 {[%clk 0:00:04]} 85. Nh2 {[%clk 0:00:04]}  Kf6 {[%clk 0:00:04]} 86. Nf3 {[%clk 0:00:05]}  Ke6 {[%clk 0:00:05]} 87. Nh4 {[%clk 0:00:05]}  Kf6 {[%clk 0:00:05]} 88. Nf3 {[%clk 0:00:04]}  Ke6 {[%clk 0:00:06]} 89. Nd2 {[%clk 0:00:05]}  Kf6 {[%clk 0:00:07]} 90. Nc4 {[%clk 0:00:05]}  Ke6 {[%clk 0:00:07]} 91. Ne3 {[%clk 0:00:04]}  Kf6 {[%clk 0:00:08]} 92. Nd5+ {[%clk 0:00:04]}  Ke6 {[%clk 0:00:08]} 93. f8=Q {[%clk 0:00:04]}  Bxf8 {[%clk 0:00:08]} 1/2-1/2